bitfinex-derivatives/quotes_SOLF0:USTF0_20240927
["timestamp","ask_amount","ask_price","bid_price","bid_amount"]
[1727405493069,3.2353,154.52,154.5,9.95]
[1727405493263,11.2494,154.56,154.51,9.95]
[1727405493665,3.2353,154.52,154.51,9.95]
[1727405495368,3.2352,154.53,154.51,9.95]
[1727405496662,11.2494,154.56,154.5,9.95]
[1727405497079,3.2355,154.52,154.5,9.95]
[1727405498974,3.2355,154.52,154.51,9.95]
[1727405500170,3.2358,154.5,154.47,6.51524529]
[1727405500375,11.2494,154.56,154.49,9.95]
[1727405500671,11.2494,154.56,154.51,9.95]
[1727405500876,3.2354,154.52,154.51,9.95]
[1727405524491,3.2348,154.55,154.51,9.95]
[1727405524690,2.6554,154.58,154.54,9.95]
[1727405524888,2.6554,154.58,154.56,9.95]
[1727405525390,3.2344,154.57,154.56,9.95]
[1727405525687,2.6554,154.58,154.54,9.95]
[1727405526084,12.6054,154.58,154.48,6.36248382]
[1727405526392,12.6054,154.58,154.53,9.95]
[1727405527089,3.2349,154.54,154.53,9.95]
[1727405528387,11.2391,154.57,154.49,3.2358]
[1727405528388,3.2353,154.53,154.49,3.2358]
[1727405528591,11.2391,154.57,154.51,9.95]
[1727405529090,9.95,154.55,154.47,6.5182789]
[1727405529286,9.95,154.54,154.49,9.95]
[1727405529687,3.2357,154.5,154.49,9.95]
[1727405530288,3.2356,154.51,154.49,9.95]
[1727405532393,3.2356,154.51,154.5,9.95]
[1727405532696,1.2891,154.57,154.5,9.95]
[1727405532891,1.2891,154.57,154.54,9.95]
[1727405533195,3.2345,154.56,154.54,9.95]
[1727405533694,1.2891,154.57,154.54,9.95]
[1727405534497,1.2891,154.57,154.53,9.95]
[1727405534793,3.2347,154.55,154.53,9.95]
[1727405536295,3.2349,154.54,154.53,9.95]
[1727405538799,3.2347,154.55,154.53,9.95]
[1727405539393,3.2349,154.54,154.53,9.95]
[1727405541397,3.2351,154.53,154.52,9.95]
[1727405541798,9.95,154.56,154.51,9.95]
[1727405542099,3.2354,154.52,154.51,9.95]
[1727405542399,3.2354,154.52,154.49,3.2359]
[1727405542594,9.95,154.55,154.49,9.95]
[1727405542892,9.95,154.53,154.49,9.95]
[1727405543096,9.95,154.52,154.46,3.24045262]
[1727405543298,9.95,154.52,154.47,9.95]
[1727405543499,12.6598,154.51,154.47,9.95]
[1727405543699,3.2362,154.48,154.47,9.95]
[1727405544698,3.2362,154.48,154.44,84.00281341]
[1727405544699,3.2362,154.48,154.46,9.95]
[1727405545497,3.2363,154.47,154.46,9.95]
[1727405545699,12.6598,154.51,154.44,87.23971341]
[1727405545700,9.95,154.5,154.44,84.00281341]
[1727405545899,9.95,154.47,154.35,3.20277767]
[1727405546093,9.95,154.47,154.42,9.95]
[1727405546399,9.95,154.47,154.41,9.95]
[1727405547900,3.2371,154.44,154.41,9.95]
[1727405549595,9.95,154.47,154.41,9.95]
[1727405549796,9.95,154.43,154.38,9.95]
[1727405550294,9.95,154.4,154.34,9.95]
[1727405550500,2.6137,154.39,154.34,9.95]
[1727405550701,3.2386,154.37,154.34,9.95]
[1727405550895,3.2386,154.37,154.36,9.95]
[1727405551097,2.6137,154.39,154.36,9.95]
[1727405551704,3.2384,154.38,154.36,9.95]
[1727405554118,3.2384,154.37,154.36,9.95]
[1727405554302,3.2384,154.37,154.35,9.95]
[1727405554503,2.6137,154.39,154.32,3.2394]
[1727405554702,12.5637,154.39,154.34,9.95]
[1727405556005,3.2386,154.36,154.34,9.95]
[1727405556296,12.5637,154.39,154.34,9.95]
[1727405556297,3.2389,154.35,154.34,9.95]
[1727405556504,2.6137,154.39,154.31,9.95]
[1727405556698,9.95,154.36,154.31,9.95]
[1727405556894,9.95,154.36,154.29,3.26107873]
[1727405557203,9.95,154.34,154.3,9.95]
[1727405557799,3.2394,154.33,154.3,9.95]
[1727405558100,2.6137,154.39,154.31,9.95]
[1727405558101,9.95,154.36,154.31,9.95]
[1727405558295,2.6137,154.39,154.33,9.95]
[1727405558501,9.95,154.38,154.33,9.95]
[1727405560206,3.239,154.35,154.33,9.95]
[1727405562597,2.6137,154.39,154.33,9.95]
[1727405563003,12.5637,154.39,154.34,9.95]
[1727405564806,3.2384,154.37,154.34,9.95]
[1727405565808,3.2383,154.38,154.34,13.1889]
[1727405566006,3.2383,154.38,154.36,9.95]
[1727405571614,3.2384,154.37,154.36,9.95]
[1727405571913,2.6137,154.39,154.33,9.95]
[1727405571914,12.5637,154.39,154.33,9.95]
[1727405572113,3.2391,154.35,154.33,9.95]
[1727405572613,3.2391,154.34,154.33,9.95]
[1727405573112,3.2391,154.34,154.31,3.2397]
[1727405573311,9.95,154.35,154.26,77.74]
[1727405573511,9.95,154.35,154.3,9.95]
[1727405574012,3.2394,154.33,154.3,13.1899]
[1727405575318,3.2395,154.32,154.3,13.1899]
[1727405575725,3.2395,154.32,154.3,9.95]
[1727405577016,3.2397,154.31,154.29,9.95]
[1727405577313,9.95,154.34,154.29,9.95]
[1727405577812,3.2398,154.31,154.29,9.95]
[1727405584419,3.2399,154.3,154.29,9.95]
[1727405585716,3.2399,154.3,154.25,84.08019627]
[1727405585717,3.2401,154.29,154.27,13.1905]
[1727405585918,3.2401,154.29,154.26,9.95]
[1727405586131,3.2401,154.29,154.26,9.89234376]
[1727405586814,3.2401,154.29,154.27,3.2405]
[1727405587519,9.95,154.31,154.25,84.08019627]
[1727405587818,9.95,154.3,154.25,94.03019627]
[1727405588317,3.2405,154.28,154.25,97.27099627]
[1727405588514,9.95,154.3,154.25,97.27099627]
[1727405589012,3.2405,154.27,154.25,97.27099627]
[1727405591326,9.95,154.3,154.25,97.27099627]
[1727405591327,9.95,154.3,154.25,84.08019627]
[1727405592122,3.2407,154.27,154.25,84.08019627]
[1727405594221,3.2407,154.27,154.26,9.95]
[1727405600426,3.2407,154.27,154.25,84.08019627]
[1727405600631,3.2407,154.27,154.25,94.03019627]
[1727405601932,3.2407,154.27,154.25,87.32109627]
[1727405602135,3.2407,154.27,154.25,97.27109627]
[1727405605828,3.2407,154.27,154.25,87.32109627]
[1727405607533,9.95,154.28,154.23,3.2413]
[1727405608528,3.241,154.25,154.23,3.2413]
[1727405609140,3.241,154.25,154.23,13.1913]
[1727405612939,3.2408,154.26,154.24,13.1911]
[1727405617137,3.2408,154.26,154.24,3.2411]
[1727405618938,1.2975,154.32,154.25,9.95]
[1727405619139,9.95,154.3,154.25,9.95]
[1727405619340,3.2405,154.27,154.25,9.95]
[1727405619943,3.2405,154.27,154.25,13.1908]
[1727405625142,3.2405,154.27,154.23,3.26178185]
[1727405625338,9.95,154.27,154.23,9.95]
[1727405625643,9.95,154.28,154.23,9.95]
[1727405626146,3.2409,154.26,154.23,13.1913]
[1727405628746,3.2409,154.26,154.24,3.2411]
[1727405634248,1.2975,154.32,154.23,9.95]
[1727405634249,3.2406,154.27,154.23,9.95]
[1727405634449,9.95,154.3,154.25,3.2409]
[1727405636054,3.2404,154.28,154.25,3.2409]
[1727405637255,3.2404,154.28,154.25,13.1909]
[1727405637957,1.2975,154.32,154.26,13.1906]
[1727405638265,9.95,154.31,154.26,13.1906]
[1727405639051,3.2403,154.29,154.26,13.1906]
[1727405639456,3.2403,154.28,154.26,13.1906]
[1727405640153,3.2403,154.28,154.25,3.2409]
[1727405640954,3.2403,154.28,154.26,3.2407]
[1727405642860,1.2975,154.32,154.26,3.2407]
[1727405643056,1.2975,154.32,154.26,13.1907]
[1727405643264,9.95,154.3,154.26,13.1907]
[1727405643462,3.2403,154.29,154.26,13.1907]
[1727405644057,3.2404,154.28,154.26,13.1907]
[1727405644562,3.2404,154.28,154.26,3.2407]
[1727405644766,3.2404,154.28,154.25,13.1908]
[1727405648767,3.2406,154.27,154.25,9.95]
[1727405650366,3.2406,154.27,154.24,3.2411]
[1727405650566,3.2406,154.27,154.24,13.1911]
[1727405651260,3.2406,154.27,154.25,9.67787467]
[1727405651563,3.2406,154.27,154.25,3.241]
[1727405654268,3.2406,154.27,154.26,6.44155072]
[1727405658082,3.2406,154.27,154.25,3.241]
[1727405658472,3.2406,154.27,154.26,6.44362221]
[1727405658973,3.2406,154.27,154.26,6.44365357]
[1727405660068,1.2975,154.32,154.26,16.39365357]
[1727405660372,1.2975,154.32,154.28,9.95]
[1727405660373,3.2401,154.3,154.28,9.95]
[1727405665375,3.2403,154.28,154.25,3.3203578]
[1727405665574,11.2475,154.32,154.27,9.95]
[1727405666773,3.2402,154.29,154.27,9.95]
[1727405685394,9.95,154.29,154.22,84.12196961]
[1727405685584,9.95,154.27,154.23,16.42398176]
[1727405685779,9.95,154.27,154.24,6.47398176]
[1727405685985,3.241,154.26,154.23,9.95]
[1727405686287,3.241,154.26,154.24,6.47442753]
[1727405686494,3.241,154.26,154.23,9.95]
[1727405687497,3.241,154.26,154.24,6.47488731]
[1727405687704,3.241,154.26,154.23,13.1914]
[1727405687991,3.241,154.26,154.24,6.47436714]
[1727405688202,3.241,154.26,154.23,3.2414]
[1727405688203,3.241,154.26,154.23,13.1914]
[1727405688590,3.241,154.26,154.24,6.47417891]
[1727405688798,3.241,154.26,154.23,13.1914]
[1727405688995,3.241,154.26,154.25,9.95]
[1727405690598,3.241,154.26,154.25,16.42359802]
[1727405690992,3.241,154.26,154.25,9.95]
[1727405691203,3.241,154.26,154.25,16.42358213]
[1727405691595,3.241,154.26,154.25,6.47358213]
[1727405691795,3.2411,154.25,154.23,9.95]
[1727405692300,3.2411,154.25,154.22,87.36346961]
[1727405692501,3.2412,154.24,154.23,16.42334119]
[1727405693206,3.2411,154.25,154.23,16.42334119]
[1727405693401,3.2411,154.25,154.23,9.95]
[1727405696901,3.2411,154.25,154.22,87.36346961]
[1727405696902,3.2408,154.26,154.24,9.95]
[1727405699308,3.241,154.25,154.22,87.36336961]
[1727405699607,3.241,154.25,154.23,9.95]
[1727405702602,3.2414,154.23,154.22,84.12196961]
[1727405702804,9.95,154.24,154.2,3.2419]
[1727405703109,9.95,154.24,154.19,9.95]
[1727405703303,9.95,154.24,154.2,6.46916657]
[1727405703508,3.2419,154.21,154.19,9.95]
[1727405703906,11.2688,154.23,154.15,81.04535118]
[1727405704109,11.2688,154.23,154.16,6.46947382]
[1727405704310,11.2688,154.23,154.15,3.24535118]
[1727405704311,11.2688,154.23,154.17,16.41947382]
[1727405704503,3.2423,154.19,154.18,6.46947382]
[1727405704703,3.2423,154.19,154.17,13.1926]
[1727405705110,3.2423,154.19,154.18,6.46751521]
[1727405705311,3.2422,154.19,154.18,6.46751521]
[1727405705511,1.3271,154.22,154.17,9.95]
[1727405706010,9.95,154.2,154.09,386.93488397]
[1727405706310,9.95,154.19,154.13,9.95]
[1727405706510,3.2432,154.15,154.13,9.95]
[1727405706911,9.95,154.15,154.09,161.93488397]
[1727405707112,3.22520314,154.18,154.0,77.8]
[1727405707322,1.2935,154.21,154.12,9.95]
[1727405707518,9.95,154.18,154.13,9.95]
[1727405708122,9.95,154.17,154.12,9.95]
[1727405708322,3.2433,154.15,154.12,9.95]
[1727405708517,11.2771,154.16,154.08,3.29590851]
[1727405708721,1.3271,154.16,154.1,9.95]
[1727405709021,3.2435,154.14,154.1,9.95]
[1727405709416,3.2431,154.15,154.1,13.1941]
[1727405709619,1.3271,154.16,154.14,9.95]
[1727405709820,1.2935,154.21,154.15,9.95]
[1727405710121,1.2935,154.21,154.18,9.95]
[1727405710323,3.2422,154.2,154.18,9.95]
[1727405710523,3.2422,154.2,154.17,9.95]
[1727405711022,3.2422,154.19,154.17,9.95]
[1727405711921,3.242,154.2,154.17,9.95]
[1727405712117,1.2935,154.21,154.18,9.95]
[1727405713021,3.2416,154.22,154.18,9.95]
[1727405713222,9.95,154.23,154.18,9.95]
[1727405713519,9.95,154.22,154.16,9.95]
[1727405713720,9.95,154.2,154.16,9.95]
[1727405714114,3.2424,154.19,154.16,9.95]
[1727405716230,3.2424,154.18,154.16,9.95]
[1727405716727,9.95,154.21,154.16,9.95]
[1727405716923,9.95,154.21,154.15,3.243]
[1727405717122,9.95,154.21,154.17,9.95]
[1727405717927,3.2423,154.19,154.17,9.95]
[1727405721728,9.95,154.21,154.15,9.95]
[1727405722130,3.2426,154.17,154.15,9.95]
[1727405722528,9.95,154.18,154.13,9.95]
[1727405722929,3.243,154.16,154.13,9.95]
[1727405723934,9.95,154.18,154.13,9.95]
[1727405724134,9.95,154.17,154.12,9.95]
[1727405725037,2.5825,154.16,154.12,9.95]
[1727405725632,3.2435,154.13,154.12,9.95]
[1727405725833,2.5825,154.16,154.12,9.95]
[1727405726333,12.5325,154.16,154.1,94.13159673]
[1727405726532,9.95,154.15,154.1,94.13159673]
[1727405726935,3.2438,154.12,154.1,94.13159673]
[1727405728635,3.2438,154.12,154.1,9.95]
[1727405729137,3.2439,154.11,154.08,9.95]
[1727405730031,3.2439,154.11,154.08,13.1945]
[1727405730541,3.2442,154.1,154.09,9.95]
[1727405730836,9.95,154.15,154.09,9.95]
[1727405731132,9.95,154.15,154.1,9.95]
[1727405731342,3.2438,154.12,154.1,9.95]
[1727405732539,3.2439,154.11,154.1,9.95]
[1727405732736,9.95,154.15,154.1,9.95]
[1727405733043,3.2438,154.12,154.1,9.95]
[1727405734245,13.8845,154.16,154.11,9.95]
[1727405734538,29.11457345,154.27,154.15,9.95]
[1727405734845,9.95,154.2,154.15,9.95]
[1727405735147,3.2425,154.18,154.15,13.193]
[1727405735647,9.95,154.22,154.17,9.95]
[1727405736240,3.2421,154.2,154.17,9.95]
[1727405736548,9.95,154.22,154.17,9.95]
[1727405737049,9.95,154.2,154.17,9.95]
[1727405737447,3.2422,154.19,154.17,9.95]
[1727405739348,9.95,154.19,154.14,9.95]
[1727405739749,3.2426,154.18,154.14,13.1931]
[1727405739952,3.2426,154.18,154.15,9.95]
[1727405741454,3.2426,154.18,154.15,13.193]
[1727405744254,9.95,154.22,154.17,9.95]
[1727405744662,3.2418,154.21,154.18,9.95]
[1727405745562,3.2421,154.2,154.18,9.95]
[1727405745966,9.95,154.23,154.18,13.1924]
[1727405746164,3.2417,154.22,154.19,9.95]
[1727405746565,3.2417,154.22,154.19,13.1921]
[1727405746765,3.2417,154.22,154.19,9.95]
[1727405747459,3.2418,154.21,154.19,9.95]
[1727405747661,3.9994,154.26,154.19,9.95]
[1727405747859,9.95,154.25,154.19,9.95]
[1727405748060,3.2416,154.22,154.19,13.1922]
[1727405749658,3.9994,154.26,154.21,9.95]
[1727405749853,13.9494,154.26,154.21,9.95]
[1727405750862,3.2414,154.23,154.21,9.95]
[1727405752565,9.95,154.23,154.15,3.27320797]
[1727405752766,9.95,154.22,154.17,9.95]
[1727405753359,3.2422,154.2,154.17,13.1926]
[1727405754266,3.2422,154.19,154.17,13.1926]
[1727405755868,3.2421,154.2,154.17,13.1926]
[1727405756569,3.2419,154.21,154.19,9.95]
[1727405758664,3.2419,154.21,154.19,13.1922]
[1727405758973,3.2416,154.22,154.19,13.1922]
[1727405760566,3.2414,154.23,154.21,9.95]
[1727405760766,3.9994,154.26,154.22,9.95]
[1727405760968,2.7185,154.26,154.23,9.95]
[1727405761372,3.2412,154.24,154.23,9.95]
[1727405762767,1.3304,154.3,154.23,9.95]
[1727405762768,9.95,154.29,154.23,9.95]
[1727405762970,9.95,154.29,154.24,9.95]
[1727405763372,3.2408,154.26,154.24,9.95]
[1727405763568,3.2408,154.26,154.23,13.1913]
[1727405764773,3.2403,154.28,154.24,13.191]
[1727405764977,11.2804,154.3,154.21,3.30155048]
[1727405765172,9.95,154.29,154.24,9.95]
[1727405766773,3.2408,154.26,154.24,9.95]
[1727405766971,9.95,154.28,154.24,9.95]
[1727405767878,3.241,154.25,154.24,9.95]
[1727405770181,3.2413,154.24,154.22,9.95]
[1727405770578,9.95,154.26,154.16,6.43644883]
[1727405770779,3.2417,154.22,154.2,9.95]
[1727405774483,3.2415,154.23,154.21,9.95]
[1727405775283,3.2412,154.24,154.21,13.1918]
[1727405775577,3.2412,154.24,154.22,9.95]
[1727405776685,3.241,154.25,154.22,9.95]
[1727405776886,3.241,154.25,154.24,9.95]
[1727405778682,1.3804,154.29,154.24,9.95]
[1727405778987,1.3804,154.29,154.26,9.95]
[1727405779786,3.2406,154.27,154.26,9.95]
[1727405780189,3.2406,154.27,154.25,9.95]
[1727405780487,3.2407,154.26,154.25,9.95]
[1727405780684,9.95,154.26,154.16,6.43557954]
[1727405780891,9.95,154.25,154.2,9.95]
[1727405782595,9.95,154.23,154.17,3.2424]
[1727405782887,9.95,154.23,154.18,9.95]
[1727405783585,3.2421,154.2,154.18,9.95]
[1727405783781,9.95,154.23,154.18,9.95]
[1727405783982,3.2418,154.21,154.18,9.95]
[1727405784387,3.2418,154.21,154.19,9.95]
[1727405785292,1.2751,154.24,154.2,9.95]
[1727405785486,1.2751,154.24,154.21,9.95]
[1727405785687,3.2415,154.23,154.21,9.95]
[1727405787695,3.2412,154.24,154.21,9.95]
[1727405787991,9.95,154.27,154.23,9.95]
[1727405788192,3.2412,154.25,154.23,9.95]
[1727405790099,3.2412,154.24,154.23,9.95]
[1727405791295,12.624,154.28,154.23,9.95]
[1727405791487,2.674,154.28,154.25,9.95]
[1727405791688,3.2407,154.27,154.25,9.95]
[1727405792792,3.2407,154.26,154.25,9.95]
[1727405796395,3.2407,154.26,154.23,3.2414]
[1727405796594,9.95,154.27,154.16,6.43425198]
[1727405796901,9.95,154.25,154.21,9.95]
[1727405797095,3.2415,154.23,154.21,9.95]
[1727405797695,3.2412,154.24,154.21,13.1918]
[1727405798095,3.2412,154.24,154.22,9.95]
[1727405799797,3.2414,154.23,154.22,9.95]
[1727405803302,12.624,154.28,154.22,13.1916]
[1727405803502,12.624,154.28,154.23,9.95]
[1727405803698,3.2411,154.25,154.23,9.95]
[1727405804100,2.674,154.28,154.24,9.95]
[1727405804608,3.2409,154.26,154.24,9.95]
[1727405804800,19.46,154.34,154.26,3.2406]
[1727405805011,9.95,154.32,154.27,9.95]
[1727405806806,3.2403,154.28,154.27,9.95]
[1727405810008,3.2402,154.29,154.27,9.95]
[1727405810201,9.95,154.33,154.28,9.95]
[1727405810401,3.8316,154.34,154.3,9.95]
[1727405810811,2.5439,154.34,154.32,9.95]
[1727405811006,2.5439,154.34,154.3,9.95]
[1727405812010,3.2396,154.32,154.3,9.95]
[1727405812811,12.4939,154.34,154.29,9.95]
[1727405813407,3.2399,154.31,154.29,9.95]
[1727405814114,12.4939,154.34,154.29,9.95]
[1727405814115,3.2399,154.3,154.29,9.95]
[1727405816418,3.2399,154.3,154.2,6.484]
[1727405816794,3.2399,154.3,153.74,148.8759526]
[1727405816795,19.42,154.21,153.77,84.21528559]
[1727405816920,19.46,154.21,153.9,1.2948]
[1727405817115,19.46,154.11,154.04,9.95]
[1727405817313,19.46,154.28,154.06,9.95]
[1727405817514,9.95,154.14,154.08,9.95]
[1727405817718,19.46,154.13,154.05,9.95]
[1727405817921,29.41,154.13,153.91,82.33449782]
[1727405818125,3.2446,154.08,154.06,9.95]
[1727405818323,12.70413631,154.07,154.02,15.57]
[1727405818623,7.97221524,154.13,154.05,15.57]
[1727405818814,7.81800947,154.12,154.07,15.57]
[1727405819119,7.81800947,154.11,154.07,15.57]
[1727405819321,7.81800947,154.1,154.04,94.7476]
[1727405819520,7.81800947,154.09,154.04,94.7476]
[1727405819720,7.97221524,154.14,154.04,94.7476]
[1727405819721,7.97221524,154.15,154.04,94.7476]
[1727405819917,7.97221524,154.15,154.07,15.57]
[1727405820217,15.57,154.17,154.07,15.57]
[1727405820424,18.8161376,154.17,154.07,15.57]
[1727405820916,15.57,154.17,154.07,15.57]
[1727405821525,15.57,154.24,154.07,15.34412168]
[1727405821724,15.57,154.18,154.07,15.34412168]
[1727405822024,15.57,154.18,154.08,3.2445]
[1727405823223,15.57,154.18,154.07,15.34412168]
[1727405823419,15.57,154.18,154.09,15.57]
[1727405823822,15.57,154.18,154.1,3.2441]
[1727405828124,15.57,154.18,154.09,18.8143]
[1727405830722,4.55297569,154.17,154.09,18.8143]
[1727405830923,4.55297569,154.16,154.09,18.8143]
[1727405831226,4.55297569,154.15,154.09,18.8143]
[1727405831416,4.55297569,154.14,154.09,18.8143]
[1727405831624,15.57,154.18,154.09,18.8143]
[1727405831824,4.55143335,154.17,154.09,18.8143]
[1727405832026,4.55143335,154.16,154.09,18.8143]
[1727405832227,4.55143335,154.15,154.09,18.8143]
[1727405832422,4.55143335,154.14,154.09,18.8143]
[1727405832627,15.57,154.18,154.09,18.8143]
[1727405832923,4.55048517,154.17,154.09,18.8143]
[1727405833120,15.57,154.18,154.09,18.8143]
[1727405833321,4.55053833,154.17,154.09,18.8143]
[1727405833624,15.57,154.18,154.09,18.8143]
[1727405833625,4.55053833,154.16,154.09,18.8143]
[1727405833824,4.55053833,154.15,154.09,18.8143]
[1727405834122,4.55053833,154.14,154.09,18.8143]
[1727405834322,15.57,154.18,154.09,18.8143]
[1727405834519,4.54922398,154.17,154.09,15.57]
[1727405834717,4.54922398,154.16,154.11,15.57]
[1727405834917,4.54922398,154.15,154.11,15.57]
[1727405835128,3.19435931,154.18,154.08,15.57]
[1727405835327,4.54904827,154.17,154.08,15.57]
[1727405835529,4.54904827,154.16,154.11,3.2437]
[1727405835724,15.57,154.19,154.11,3.2437]
[1727405835929,7.76171771,154.18,154.11,3.2437]
[1727405836127,4.54886577,154.17,154.11,3.2437]
[1727405836340,3.21285194,154.18,154.11,3.2437]
[1727405836731,4.54834894,154.17,154.11,3.2437]
[1727405837028,3.21285194,154.18,154.1,3.2441]
[1727405837029,4.54834894,154.16,154.1,3.2441]
[1727405837228,3.21285194,154.18,154.1,3.2441]
[1727405837229,15.57,154.17,154.1,3.2441]
[1727405837429,7.79069853,154.16,154.08,15.57]
[1727405837626,15.57,154.17,154.11,3.2438]
[1727405837919,4.54769857,154.16,154.11,3.2438]
[1727405838122,3.2431,154.15,154.11,3.2438]
[1727405838527,15.57,154.19,154.1,15.57]
[1727405838726,3.2429,154.16,154.1,15.57]
[1727405838918,15.57,154.19,154.12,3.2435]
[1727405839120,3.243,154.16,154.12,3.2435]
[1727405840419,3.243,154.16,154.12,13.2135]
[1727405840831,9.97,154.17,154.11,13.2138]
[1727405841128,9.97,154.16,154.11,13.2138]
[1727405841630,3.2433,154.15,154.11,13.2138]
[1727405841830,9.97,154.16,154.11,13.2138]
[1727405842430,3.2433,154.14,154.11,13.2138]
[1727405843625,9.97,154.17,154.11,9.97]
[1727405843822,9.97,154.18,154.12,9.97]
[1727405844029,4.5454111,154.17,154.12,9.97]
[1727405844228,9.97,154.18,154.12,9.97]
[1727405844832,3.2429,154.16,154.13,3.2433]
[1727405845228,9.97,154.17,154.11,9.97]
[1727405845529,3.2434,154.14,154.11,13.2138]
[1727405846841,3.2435,154.13,154.1,13.214]
[1727405847235,9.97,154.16,154.1,9.97]
[1727405847930,3.2434,154.14,154.11,3.2439]
[1727405848135,3.2434,154.14,154.11,13.2139]
[1727405848331,3.2436,154.13,154.11,9.97]
[1727405848632,9.97,154.16,154.11,9.97]
[1727405849333,3.2434,154.14,154.11,9.97]
[1727405850041,3.2434,154.14,154.11,13.2138]
[1727405852333,3.2432,154.15,154.04,79.2576]
[1727405852542,3.31439922,154.2,154.14,9.97]
[1727405852737,7.78570616,154.19,154.16,3.2427]
[1727405852934,4.54340616,154.18,154.15,9.97]
[1727405853237,13.19312057,154.2,154.15,9.97]
[1727405853446,3.2426,154.18,154.15,13.213]
[1727405854038,3.2426,154.18,154.15,3.243]
[1727405854641,91.2604724,154.24,154.15,9.97]
[1727405854941,9.97,154.22,154.16,9.97]
[1727405855136,4.54364815,154.21,154.16,9.97]
[1727405855341,3.2422,154.19,154.16,9.97]
[1727405855843,9.97,154.21,154.16,9.97]
[1727405856147,3.2422,154.2,154.16,13.2128]
[1727405857337,3.2422,154.2,154.17,3.2426]
[1727405859850,3.2422,154.2,154.16,13.2128]
[1727405860846,13.2119,154.21,154.16,13.2128]
[1727405861846,3.2421,154.2,154.16,13.2128]
[1727405863147,3.2423,154.19,154.15,3.243]
[1727405863347,9.97,154.21,154.16,9.97]
[1727405863648,91.2604724,154.24,154.17,9.97]
[1727405863849,91.2604724,154.24,154.18,3.2424]
[1727405863850,3.2417,154.22,154.18,3.2424]
[1727405864250,3.2417,154.22,154.17,13.2126]
[1727405865445,71.8004724,154.24,154.19,9.97]
[1727405865650,71.8004724,154.24,154.2,9.97]
[1727405866652,75.0417724,154.24,154.2,9.97]
[1727405867252,3.2413,154.24,154.2,9.97]
[1727405867456,3.2413,154.24,154.2,13.212]
[1727405870957,3.2413,154.24,154.2,9.97]
[1727405875560,3.2413,154.24,154.2,13.212]
[1727405877163,3.2413,154.24,154.2,3.242]
[1727405878560,3.2414,154.23,154.2,3.242]
[1727405878861,9.97,154.25,154.19,9.97]
[1727405879164,3.2412,154.23,154.19,13.2118]
[1727405881162,3.2412,154.23,154.2,9.97]
[1727405884062,9.97,154.25,154.2,9.97]
[1727405884467,29.43,154.25,154.18,3.2423]
[1727405884657,29.43,154.25,154.18,9.97]
[1727405884864,9.97,154.24,154.18,9.97]
[1727405885164,3.2415,154.23,154.19,3.2422]
[1727405885665,3.2416,154.22,154.19,3.2422]
[1727405886164,3.2415,154.23,154.19,13.2122]